bitfinex-derivatives/quotes_SOLF0:USTF0_20250127
["timestamp","ask_amount","ask_price","bid_price","bid_amount"]
[1737980998166,16.78309622,224.41,224.3,2.8841]
[1737980998366,16.78309622,224.41,224.3,1.48702616]
[1737980998571,0.0320787,224.34,224.3,1.48702616]
[1737980998772,4.4916787,224.34,224.3,1.48702616]
[1737980999074,0.0320787,224.34,224.3,1.48702616]
[1737981000574,0.0320787,224.34,224.3,0.02862616]
[1737981000873,16.78309622,224.33,224.14,2.8854]
[1737981001067,4.4606,224.29,224.19,4.4624]
[1737981001272,16.78309622,224.33,224.14,4.2353]
[1737981001474,4.4599,224.32,224.21,4.4621]
[1737981001672,16.78309622,224.33,224.14,4.2353]
[1737981002178,0.03163292,224.29,224.24,0.03348973]
[1737981003075,16.81472914,224.29,224.24,0.03348973]
[1737981003378,16.78309622,224.25,224.14,1.4172]
[1737981003675,4.4624,224.2,224.11,4.4639]
[1737981003866,16.78309622,224.25,224.08,2.7306]
[1737981004272,16.78309622,224.29,224.08,2.7306]
[1737981004473,4.4611,224.26,224.11,16.78309622]
[1737981004774,0.0332376,224.19,224.14,0.03149983]
[1737981006074,0.0332376,224.19,224.15,4.4632]
[1737981006269,0.0332376,224.19,224.14,0.03149983]
[1737981007669,0.0332376,224.19,224.15,4.4632]
[1737981007868,0.0332376,224.19,224.14,0.03149983]
[1737981008869,4.4633,224.15,224.14,0.03149983]
[1737981009271,16.78309622,224.17,223.97,4.5214]
[1737981009477,4.4636,224.14,224.08,4.4646]
[1737981009977,16.78309622,224.17,224.0,2.8684]
[1737981010180,4.4639,224.12,224.07,4.4648]
[1737981010577,0.03217041,224.12,224.07,0.02891636]
[1737981011379,4.49607041,224.12,224.07,0.02891636]
[1737981013380,4.49607041,224.12,224.07,4.49361636]
[1737981013576,0.03217041,224.12,224.07,0.02891636]
[1737981014481,4.4646,224.08,224.07,0.02891636]
[1737981014780,4.4646,224.08,224.07,1.636e-05]
[1737981015181,16.78309622,224.09,223.9,1.3557]
[1737981015382,16.78309622,224.05,223.9,1.3557]
[1737981016074,0.1856,224.08,223.9,1.3557]
[1737981016275,16.78309622,224.09,223.9,1.3557]
[1737981016475,2.955e-05,224.01,223.97,0.03253946]
[1737981016678,2.955e-05,224.01,224.0,4.4662]
[1737981016880,0.1856,224.17,223.98,16.78309622]
[1737981017081,0.1856,224.17,224.04,4.4654]
[1737981017382,0.1856,224.17,223.94,16.78309622]
[1737981017584,16.78309622,224.11,224.08,9.29e-05]
[1737981017784,16.78309622,224.11,223.9,1.3557]
[1737981018084,4.4657,224.03,223.9,1.3557]
[1737981018884,0.03170029,223.99,223.94,0.03222047]
[1737981019685,0.03170029,223.99,223.98,4.4666]
[1737981021285,16.78309622,224.11,223.94,0.03222047]
[1737981021484,16.78309622,224.15,223.93,16.78309622]
[1737981021784,4.4645,224.09,223.93,16.78309622]
[1737981021980,16.78309622,224.15,223.93,16.78309622]
[1737981022190,16.78309622,224.15,223.9,1.3557]
[1737981022191,16.78309622,224.15,223.97,16.78309622]
[1737981022586,0.03251823,224.08,224.04,0.02813871]
[1737981022888,4.463,224.17,224.12,4.4637]
[1737981023181,0.0313221,224.17,224.05,19.59519622]
[1737981023384,4.4624,224.2,224.14,4.4633]
[1737981023584,0.03207245,224.13,224.05,19.59519622]
[1737981023781,0.1871,224.28,224.15,0.02971772]
[1737981023985,4.4631,224.16,224.15,0.02971772]
[1737981024288,16.78309622,224.2,224.05,2.8121]
[1737981024688,4.4633,224.15,224.05,2.8121]
[1737981024880,0.03061221,224.15,224.1,0.02964217]
[1737981025586,4.4635,224.14,224.1,0.02964217]
[1737981026681,0.03061221,224.15,224.1,0.02964217]
[1737981027388,0.03061221,224.15,224.11,4.4639]
[1737981027583,0.03061221,224.15,224.1,0.02964217]
[1737981028588,0.03061221,224.15,224.1,4.49384217]
[1737981028783,0.03061221,224.15,224.1,0.02964217]
[1737981030288,4.4636,224.14,224.1,0.02964217]
[1737981030488,0.03061221,224.15,224.1,0.02964217]
[1737981031489,4.464,224.11,224.1,0.02964217]
[1737981032089,0.03061221,224.15,224.1,0.02964217]
[1737981032589,4.464,224.11,224.1,0.02964217]
[1737981032786,16.78309622,224.12,223.99,1.3312]
[1737981033589,4.4646,224.09,223.99,1.3312]
[1737981033889,16.78309622,224.12,223.99,1.3312]
[1737981034089,4.4653,224.05,224.02,0.0305008]
[1737981034482,0.03072143,224.06,224.02,0.0305008]
[1737981034686,4.4653,224.05,224.02,0.0305008]
[1737981035691,4.4656,224.04,224.02,0.0305008]
[1737981035891,0.03072143,224.06,224.02,0.0305008]
[1737981036485,4.4656,224.03,224.02,0.0305008]
[1737981037889,4.4655,224.04,224.02,0.0305008]
[1737981038091,0.03072143,224.06,224.02,0.0305008]
[1737981038488,4.4656,224.03,224.02,0.0305008]
[1737981039291,4.4656,224.03,223.89,2.8475]
[1737981039491,4.4672,223.96,223.89,2.8475]
[1737981040088,4.4672,223.96,223.91,4.468]
[1737981040294,4.4672,223.96,223.89,2.8475]
[1737981040591,0.03209329,223.96,223.91,0.03372437]
[1737981040993,4.4678,223.92,223.91,0.03372437]
[1737981043096,4.4687,223.88,223.83,7.2332]
[1737981043395,16.78309622,223.96,223.83,2.7637]
[1737981043597,16.78309622,223.96,223.83,4.4696]
[1737981043792,16.78309622,223.96,223.82,0.15716]
[1737981043992,16.78309622,223.96,223.86,4.469]
[1737981044192,0.02938455,223.91,223.87,0.03315106]
[1737981045497,0.02938455,223.91,223.9,4.4682]
[1737981045996,16.78309622,224.0,223.88,2.8177]
[1737981046196,4.4668,223.98,223.91,4.4679]
[1737981046396,16.78309622,224.0,223.88,2.8177]
[1737981046896,16.78309622,223.96,223.88,2.8177]
[1737981047093,16.81352964,223.96,223.92,0.03208346]
[1737981047293,4.4676,223.93,223.92,0.03208346]
[1737981049101,16.81352964,223.96,223.92,0.03208346]
[1737981049290,0.03043342,223.96,223.92,0.03208346]
[1737981049799,4.4674,223.95,223.92,0.03208346]
[1737981049997,0.03043342,223.96,223.92,0.03208346]
[1737981051697,0.03043342,223.96,223.93,4.4676]
[1737981051896,0.03043342,223.96,223.92,0.03208346]
[1737981053292,0.03043342,223.96,223.95,4.4672]
[1737981053598,0.03043342,223.96,223.93,1.3571]
[1737981054097,0.03043342,223.96,223.92,0.03208346]
[1737981054598,0.03043342,223.96,223.95,4.4672]
[1737981059194,16.78309622,224.08,223.92,0.03208346]
[1737981059495,16.78309622,224.08,223.88,1.3571]
[1737981059496,16.78309622,224.04,223.88,1.3571]
[1737981059799,16.78309622,223.99,223.88,1.3571]
[1737981060002,16.78309622,223.99,223.76,16.78309622]
[1737981060299,16.78309622,223.99,223.85,4.4691]
[1737981060497,0.02939011,223.9,223.85,0.02840117]
[1737981060697,3.04,224.01,223.81,0.80415431]
[1737981060899,0.03144702,223.9,223.85,0.03116299]
[1737981061091,4.4673,223.95,223.81,0.80415431]
[1737981061398,0.03201835,223.9,223.85,0.03319354]
[1737981061695,16.78309622,224.08,223.88,16.78309622]
[1737981061899,16.78309622,224.08,223.89,2.7015]
[1737981062498,16.78309622,224.18,223.96,16.78309622]
[1737981062698,35.05512044,224.22,224.04,16.78309622]
[1737981062898,35.05512044,224.22,224.05,2.79393251]
[1737981063100,16.78309622,224.18,224.05,2.7633]
[1737981063295,16.78309622,224.1,223.91,16.78309622]
[1737981063497,16.78309622,224.1,223.96,1.4206]
[1737981063692,3.04,224.16,224.01,4.4659]
[1737981063693,16.78309622,224.14,224.01,4.4659]
[1737981064097,0.03345936,224.1,224.05,0.03288791]
[1737981064303,4.4645,224.09,224.05,0.03288791]
[1737981064494,0.03345936,224.1,224.05,0.03288791]
[1737981064795,16.81655558,224.1,224.05,0.03288791]
[1737981065295,4.4659,224.02,223.96,1.4206]
[1737981065700,16.78309622,224.06,223.96,1.4206]
[1737981066403,4.4654,224.05,223.96,1.4206]
[1737981066700,0.03296896,224.03,223.99,0.03110327]
[1737981067099,4.49866896,224.03,223.99,0.03110327]
[1737981067701,4.49866896,224.03,223.95,3.90154388]
[1737981068801,4.4659,224.02,223.97,0.03396285]
[1737981069104,0.03296896,224.03,223.97,0.03396285]
[1737981069295,16.78309622,224.02,223.97,0.03396285]
[1737981069497,4.4665,223.99,223.97,0.03396285]
[1737981070199,4.4666,223.98,223.97,0.03396285]
[1737981071405,0.03296896,224.03,223.97,0.03396285]
[1737981072100,16.78309622,224.15,223.97,0.03396285]
[1737981072301,16.78309622,224.15,223.97,16.78309622]
[1737981072601,16.78309622,224.15,223.98,1.3307]
[1737981072800,16.78309622,224.15,223.98,2.7027]
[1737981073002,4.4652,224.06,223.98,2.7027]
[1737981073401,16.78309622,224.11,224.0,0.0322439]
[1737981073402,0.03299317,224.04,224.0,0.0322439]
[1737981073603,4.49849317,224.04,224.0,0.0322439]
[1737981074500,4.4657,224.03,224.0,0.0322439]
[1737981075005,4.466,224.01,224.0,0.0322439]
[1737981076206,0.03299317,224.04,224.0,0.0322439]
[1737981076703,0.03299317,224.04,224.01,4.466]
[1737981077398,0.03299317,224.04,224.0,0.0322439]
[1737981077900,16.78309622,224.03,224.0,0.0322439]
[1737981078104,16.78309622,224.03,223.9,2.7849]
[1737981078404,16.78309622,223.99,223.9,2.7849]
[1737981078606,4.4673,223.95,223.9,2.7849]
[1737981078904,16.78309622,223.99,223.9,2.7849]
[1737981079105,4.4667,223.98,223.93,4.4676]
[1737981079304,0.02823416,223.97,223.92,0.03051206]
[1737981080205,4.4673,223.95,223.92,0.03051206]
[1737981080801,0.02823416,223.97,223.92,0.03051206]
[1737981081005,0.02823416,223.97,223.93,4.4676]
[1737981081305,0.02823416,223.97,223.92,0.03051206]
[1737981082104,4.4671,223.96,223.92,0.03051206]
[1737981082506,0.02823416,223.97,223.92,0.03051206]
[1737981082800,4.4672,223.95,223.92,0.03051206]
[1737981084902,0.02823416,223.97,223.96,4.467]
[1737981085101,16.78309622,224.07,223.93,1.4461]
[1737981085405,4.4657,224.03,223.94,1.4206]
[1737981085603,16.78309622,224.07,223.94,1.4206]
[1737981086506,0.03058928,224.03,223.98,0.02939073]
[1737981086907,0.03058928,224.03,223.99,4.4663]
[1737981087108,0.03058928,224.03,223.98,0.02939073]
[1737981087406,0.03058928,224.03,224.02,4.4658]
[1737981087807,0.03058928,224.03,223.98,0.02939073]
[1737981088007,4.49628928,224.03,223.99,4.4664]
[1737981088202,0.03058928,224.03,223.94,1.4206]
[1737981088503,0.03058928,224.03,223.76,4.90597763]
[1737981088703,16.78309622,223.98,223.77,2.9192]
[1737981088908,16.78309622,223.98,223.78,0.80410942]
[1737981089210,4.4678,223.92,223.86,4.4689]
[1737981089409,0.03138242,223.9,223.86,0.0289097]
[1737981089810,4.49968242,223.9,223.86,0.0289097]
[1737981090011,0.03138242,223.9,223.86,0.0289097]
[1737981090312,0.03138242,223.9,223.87,4.4688]
[1737981090506,0.03138242,223.9,223.86,0.0289097]
[1737981093108,21.25189622,223.87,223.86,0.0289097]
[1737981093304,0.03138242,223.9,223.77,2.9192]
[1737981093505,0.03138242,223.9,223.87,4.4688]
[1737981093809,16.78309622,223.96,223.77,2.9192]
[1737981094011,16.78309622,223.88,223.77,2.9192]
[1737981094314,4.469,223.86,223.77,2.9192]
[1737981094611,0.03366363,223.85,223.8,0.03008962]
[1737981095315,4.4698,223.82,223.8,0.03008962]
[1737981095812,16.78309622,223.84,223.8,0.03008962]
[1737981096008,4.47,223.81,223.8,0.03008962]
[1737981096312,16.78309622,223.84,223.7,1.3843]
[1737981096513,4.47,223.82,223.7,1.3843]
[1737981097016,16.78309622,223.84,223.7,1.3843]
[1737981097315,0.02964005,223.79,223.75,0.03321619]
[1737981097713,0.02964005,223.79,223.76,4.471]
[1737981097918,0.02964005,223.79,223.75,0.03321619]
[1737981098819,0.02964005,223.79,223.76,4.471]
[1737981100113,0.02964005,223.79,223.75,0.03321619]
[1737981100322,0.02964005,223.79,223.78,4.4706]
[1737981100915,16.78309622,223.88,223.75,0.03321619]
[1737981101219,0.2516,224.03,223.75,16.81631241]
[1737981101517,3.3716,224.03,223.79,16.78309622]
[1737981101711,16.78309622,224.0,223.8,2.728]
[1737981102112,0.03296178,223.92,223.88,4.49767521]
[1737981102513,0.03296178,223.92,223.9,4.4682]
[1737981102722,0.03296178,223.92,223.88,0.02907521]
[1737981103524,16.816058,223.92,223.88,0.02907521]
[1737981103922,4.4684,223.89,223.88,0.02907521]
[1737981106125,16.816058,223.92,223.75,1.4015]
[1737981106324,16.78309622,223.92,223.75,4.2198]
[1737981106529,16.78309622,223.92,223.8,4.4702]
[1737981106729,16.78309622,223.88,223.75,4.2198]
[1737981107028,16.78309622,223.88,223.78,4.4705]
[1737981107328,0.0319752,223.85,223.81,0.0326557]
[1737981107727,4.4695,223.84,223.81,0.0326557]
[1737981107933,0.0319752,223.85,223.81,0.0326557]
[1737981108430,16.78309622,223.92,223.81,0.0326557]
[1737981108929,4.4686,223.89,223.83,4.4695]
[1737981109233,16.78309622,223.92,223.75,21.00289622]
[1737981109432,16.78309622,223.96,223.76,0.80438465]
[1737981109629,16.78309622,223.96,223.79,0.15893]
[1737981110027,0.03194542,223.9,223.85,0.03313456]
[1737981110522,4.469,223.86,223.85,0.03313456]
[1737981112025,16.78309622,223.88,223.79,0.15893]
[1737981112831,4.4692,223.86,223.79,0.15893]
[1737981113033,16.78309622,223.88,223.79,0.15893]
[1737981113234,0.02979023,223.85,223.8,0.02968034]
[1737981115134,4.47,223.82,223.8,0.02968034]
[1737981116034,4.4696,223.84,223.8,0.02968034]
[1737981116234,0.02979023,223.85,223.8,0.02968034]
[1737981116633,4.49919023,223.85,223.8,4.49988034]
[1737981117030,0.02979023,223.85,223.8,0.02968034]
[1737981117834,4.47,223.81,223.8,0.02968034]
[1737981118034,16.78309622,223.83,223.79,0.15893]
[1737981118236,4.4702,223.8,223.79,0.15893]
[1737981119038,16.78309622,223.83,223.7,4.472]
[1737981119237,16.78309622,223.79,223.68,2.6796]
[1737981119536,16.81290545,223.79,223.69,4.4724]
[1737981120137,4.4719,223.72,223.68,2.6796]
[1737981120340,16.78309622,223.79,223.68,2.6796]
[1737981120640,0.03037142,223.72,223.68,2.6796]
[1737981120935,0.03037142,223.72,223.64,1.4169]
[1737981121740,4.472,223.71,223.65,4.4732]
[1737981121943,16.78309622,223.75,223.57,1.4345]
[1737981122144,0.03317727,223.7,223.63,16.78309622]
[1737981122343,4.4708,223.78,223.64,2.6866]
[1737981122542,16.78309622,223.79,223.64,2.6866]
[1737981122836,4.4718,223.73,223.67,4.4727]
[1737981123044,4.4718,223.73,223.64,2.6866]
[1737981123342,4.4724,223.7,223.64,7.16]
[1737981123542,0.03173092,223.71,223.66,0.03215035]
[1737981123743,16.81482714,223.71,223.66,0.03215035]
[1737981124043,4.4728,223.67,223.66,0.03215035]
[1737981125340,4.4726,223.68,223.66,0.03215035]
[1737981126043,4.4725,223.69,223.66,0.03215035]
[1737981126245,0.03173092,223.71,223.66,0.03215035]
[1737981126642,0.03173092,223.71,223.67,4.4728]
[1737981127043,0.03173092,223.71,223.66,0.03215035]
[1737981127846,4.4726,223.69,223.66,0.03215035]
[1737981128146,0.03173092,223.71,223.66,0.03215035]
[1737981128352,16.78309622,223.85,223.66,0.03215035]
[1737981128542,4.4702,223.81,223.75,4.4711]
[1737981128744,16.78309622,223.85,223.64,1.3541]
[1737981129145,16.78309622,223.85,223.67,16.78309622]
[1737981129348,16.78309622,223.85,223.68,2.24605284]
[1737981129546,0.02823581,223.78,223.77,4.4708]
[1737981129848,16.78309622,223.85,223.68,1.4413]
[1737981130049,4.4705,223.79,223.71,4.4718]
[1737981130249,16.78309622,223.85,223.68,1.4413]
[1737981130848,16.78309622,223.76,223.74,0.02995436]
[1737981131952,4.4712,223.75,223.74,0.02995436]
[1737981132645,16.78309622,223.76,223.6,1.4399]
[1737981133351,4.4718,223.73,223.67,4.4726]
[1737981133652,16.78309622,223.76,223.6,1.4399]
[1737981133853,0.03230124,223.72,223.68,4.50498676]
[1737981134049,0.03230124,223.72,223.68,0.03248676]
[1737981135355,4.4724,223.69,223.68,0.03248676]
[1737981135956,4.4722,223.7,223.68,0.03248676]
[1737981136148,0.03230124,223.72,223.68,0.03248676]
[1737981137055,4.4724,223.69,223.68,0.03248676]
[1737981138756,4.4724,223.69,223.68,8.676e-05]
[1737981141058,4.4722,223.7,223.68,8.676e-05]
[1737981142058,16.81539746,223.72,223.68,8.676e-05]
[1737981142259,4.4724,223.69,223.68,8.676e-05]
[1737981142759,16.81539746,223.72,223.68,8.676e-05]
[1737981142959,0.03230124,223.72,223.68,8.676e-05]
[1737981143356,0.03230124,223.72,223.68,4.47268676]
[1737981143860,0.03230124,223.72,223.68,8.676e-05]
[1737981144057,0.03230124,223.72,223.7,4.4722]
[1737981144258,0.03230124,223.72,223.68,8.676e-05]
[1737981144660,0.03230124,223.72,223.71,4.472]
[1737981145151,3.1,223.86,223.69,2.8128]
[1737981145655,3.1,223.86,223.74,4.4713]
[1737981145855,16.78309622,223.81,223.74,4.4713]
[1737981146053,16.78309622,223.85,223.69,2.8128]
[1737981146351,0.03059388,223.8,223.75,0.02921492]
[1737981146551,16.8136901,223.8,223.75,0.02921492]
[1737981147261,4.4706,223.79,223.75,0.02921492]
[1737981147461,16.8136901,223.8,223.75,0.02921492]
[1737981147759,0.03059388,223.8,223.75,0.02921492]
[1737981148859,16.78309622,223.93,223.75,0.02921492]
[1737981149056,4.4682,223.91,223.84,4.4694]
[1737981149251,4.4682,223.91,223.76,1.377]
[1737981149761,16.78309622,223.93,223.76,1.377]
[1737981150256,0.03347708,223.87,223.82,0.03046416]
[1737981150562,0.03347708,223.87,223.86,4.469]
[1737981151664,16.78309622,223.97,223.82,0.03046416]
[1737981151959,0.4443,224.06,223.83,16.78309622]
[1737981152560,16.78309622,223.98,223.81,3.1]
[1737981152960,0.03265946,223.92,223.87,0.02959507]
[1737981155660,0.03265946,223.92,223.91,4.468]
[1737981156662,0.03265946,223.92,223.87,0.02959507]
[1737981158061,0.03265946,223.92,223.89,4.4683]
[1737981158261,0.03265946,223.92,223.87,0.02959507]
[1737981158662,0.03265946,223.92,223.89,4.4684]
[1737981159362,0.03265946,223.92,223.87,0.02959507]
[1737981159661,0.03265946,223.92,223.91,4.468]
[1737981160257,0.4443,224.06,223.95,4.4672]
[1737981160459,0.4443,224.06,223.89,1.3938]
[1737981160655,4.4661,224.01,223.89,1.3938]
[1737981160865,4.4661,224.01,223.95,4.4672]
[1737981161164,1.4053,224.11,223.89,1.3938]
[1737981161365,0.03257919,224.0,223.99,4.4664]
[1737981161566,18.13969622,224.11,223.91,16.78309622]
[1737981161863,16.78309622,224.15,223.95,16.78309622]
[1737981162059,16.78309622,224.15,223.99,16.78309622]
[1737981162266,4.4635,224.14,224.0,2.7286]
[1737981162568,16.78309622,224.19,224.0,2.7286]
[1737981162760,0.0292535,224.09,224.05,0.03258478]
[1737981163164,0.0292535,224.09,223.99,16.78309622]
[1737981163165,16.78309622,224.15,223.96,16.78309622]
[1737981163367,0.03306714,224.09,224.05,0.03145818]
[1737981165466,16.78309622,224.22,224.05,0.03145818]
[1737981165667,16.78309622,224.22,224.01,1.4133]
[1737981166259,16.78309622,224.22,224.04,16.78309622]
[1737981166463,0.03370742,224.14,224.09,0.02978038]
[1737981166862,0.03370742,224.14,224.13,4.4636]
[1737981167267,0.03370742,224.14,224.09,0.02978038]
[1737981167471,4.4627,224.18,224.12,4.4638]
[1737981167667,16.78309622,224.26,224.05,1.3383]
[1737981167968,4.4643,224.1,224.05,5.8034]
[1737981168168,16.78309622,224.22,224.05,1.3383]
[1737981168563,0.03225232,224.16,224.11,4.49630943]
[1737981168866,0.03225232,224.16,224.11,0.03230943]
[1737981169068,0.03225232,224.16,224.12,4.4637]
[1737981169263,0.03225232,224.16,224.11,0.03230943]
[1737981169670,0.03225232,224.16,224.13,4.4635]
[1737981170274,0.03225232,224.16,224.11,0.03230943]
[1737981170667,0.03225232,224.16,224.15,4.4633]
[1737981170972,4.4607,224.28,224.12,16.78309622]
[1737981171167,16.78309622,224.34,224.12,16.78309622]
[1737981171569,4.4611,224.26,224.12,16.78309622]
[1737981171873,0.03204694,224.21,224.17,0.03141824]
[1737981172869,0.03204694,224.21,224.2,4.4623]
[1737981174083,0.03204694,224.21,224.13,1.3292]
[1737981174577,4.4605,224.29,224.2,4.4623]
[1737981174772,3.1,224.38,224.17,1.399]
[1737981174972,2.0159,224.39,224.17,1.399]
[1737981175177,2.0159,224.39,224.2,16.78309622]
[1737981175379,1.938,224.39,224.2,16.78309622]
[1737981175781,0.0321698,224.32,224.27,0.0331308]
[1737981175981,0.0321698,224.32,224.31,4.4601]
[1737981176182,2.0256,224.47,224.28,16.78309622]
[1737981176382,2.0256,224.47,224.29,1.4012]
[1737981177081,16.78309622,224.44,224.29,1.4012]
[1737981177284,0.03236507,224.4,224.36,0.02960226]
[1737981179484,4.49066507,224.4,224.36,0.02960226]
[1737981179686,0.03236507,224.4,224.36,0.02960226]
[1737981180586,4.4569,224.47,224.36,0.02960226]
[1737981180777,16.78309622,224.56,224.36,1.46960226]
[1737981180981,16.78309622,224.56,224.36,1.44]
[1737981181186,4.4569,224.48,224.41,4.4581]
[1737981181377,16.78309622,224.56,224.37,2.8973]
[1737981181777,0.03297435,224.49,224.44,0.03091301]
[1737981182287,4.4573,224.45,224.44,0.03091301]
[1737981183086,0.03297435,224.49,224.44,0.03091301]
[1737981183990,4.457,224.47,224.44,0.03091301]
[1737981184188,0.03297435,224.49,224.44,0.03091301]
[1737981184685,205.99227474,224.78,224.44,0.03091301]
[1737981184892,16.78309622,224.66,224.47,16.78309622]
[1737981185089,4.4537,224.64,224.48,1.4033]
[1737981185289,16.78309622,224.66,224.48,1.4033]
[1737981185590,16.78309622,224.7,224.51,16.78309622]
[1737981185791,2.0523,224.72,224.51,16.78309622]
[1737981186088,0.03305899,224.63,224.58,0.03260287]
[1737981186291,0.03305899,224.63,224.51,16.78309622]
[1737981186494,0.03305899,224.63,224.58,0.03037579]
[1737981187393,0.03305899,224.63,224.6,4.4542]
[1737981187586,16.85529622,224.77,224.58,0.03037579]
[1737981187892,16.85529622,224.77,224.55,16.78309622]
[1737981188487,4.4522,224.71,224.6,4.4542]
[1737981188692,16.78309622,224.73,224.55,16.78309622]
[1737981188893,16.78309622,224.73,224.63,0.0336689]
[1737981189293,16.85529622,224.77,224.63,0.0336689]
[1737981189499,16.85529622,224.77,224.55,16.78309622]
[1737981189794,16.78309622,224.77,224.68,0.03361738]
[1737981190194,16.78309622,224.77,224.7,0.03161895]
[1737981190697,4.4521,224.71,224.7,1.895e-05]
[1737981191393,16.78309622,224.73,224.51,16.78309622]
[1737981191596,4.4537,224.64,224.51,16.78309622]
[1737981191897,4.4537,224.64,224.57,4.4549]
[1737981192197,16.78309622,224.73,224.51,16.78309622]
[1737981192591,0.03429353,224.64,224.6,0.03218899]
[1737981192793,4.4548,224.58,224.5,1.3732]
[1737981193096,16.78309622,224.65,224.53,4.4555]
[1737981193395,4.454,224.62,224.53,4.4555]
[1737981193596,16.78309622,224.65,224.52,4.4557]
[1737981193797,16.78309622,224.65,224.5,1.3732]
[1737981194098,0.0327993,224.61,224.56,0.03419726]
[1737981194397,16.78309622,224.69,224.57,4.4549]
[1737981194591,0.03123669,224.61,224.57,4.4549]
[1737981194993,0.03123669,224.61,224.57,4.48374007]
[1737981195193,0.03123669,224.61,224.59,4.4545]
[1737981195391,0.03123669,224.61,224.57,0.02884007]
[1737981195694,0.03123669,224.61,224.55,4.4553]
[1737981196196,0.03123669,224.61,224.54,4.4555]
[1737981196495,0.03123669,224.61,224.51,16.78309622]
[1737981196795,0.03123669,224.61,224.54,0.0341197]
[1737981197198,0.03123669,224.61,224.6,4.4543]
[1737981197998,0.03123669,224.61,224.55,1.4448]
[1737981198396,0.03123669,224.61,224.54,0.0341197]
[1737981198597,4.48533669,224.61,224.54,0.0341197]
[1737981198790,0.03123669,224.61,224.58,4.4547]
[1737981199098,0.03123669,224.61,224.55,16.78309622]
[1737981199397,0.03123669,224.61,224.56,1.331]
[1737981199898,0.03123669,224.61,224.6,4.4543]
[1737981200496,4.4525,224.7,224.64,4.4533]
[1737981200695,0.594,224.76,224.64,4.4533]
[1737981200996,4.4519,224.73,224.64,4.4533]
[1737981201196,0.594,224.76,224.64,4.4533]
[1737981201494,0.03004843,224.72,224.68,0.03223986]
[1737981202092,16.78309622,224.85,224.68,0.03223986]
[1737981202291,4.4506,224.79,224.64,2.8267]
[1737981202497,16.78309622,224.85,224.74,4.4515]
[1737981203097,4.4507,224.79,224.67,16.78309622]
[1737981203298,0.0281039,224.82,224.77,0.03035743]
[1737981203499,16.78309622,224.85,224.67,16.78309622]
[1737981203699,0.03058213,224.82,224.77,0.02971817]
[1737981204095,4.4502,224.81,224.77,0.02971817]
[1737981204495,0.03058213,224.82,224.77,0.02971817]
[1737981204701,4.4507,224.78,224.77,1.817e-05]
[1737981204903,16.78309622,224.81,224.64,2.8267]
[1737981205201,16.78309622,224.77,224.64,2.8267]
[1737981205403,0.1337,224.8,224.64,2.8267]
[1737981205601,16.78309622,224.81,224.64,2.8267]
[1737981205896,16.78309622,224.81,224.66,4.4531]
[1737981206101,0.03341593,224.75,224.7,0.03342317]
[1737981206402,0.03341593,224.75,224.74,4.4515]
[1737981207004,16.78309622,224.85,224.7,0.03342317]
[1737981207200,16.78309622,224.89,224.71,16.78309622]
[1737981207703,16.78309622,224.93,224.71,16.78309622]
[1737981208103,4.4484,224.91,224.75,16.78309622]
[1737981208303,0.03024217,224.84,224.82,4.4499]
[1737981208504,16.78309622,224.93,224.76,2.753]
[1737981208706,0.03117707,224.85,224.81,0.03091066]
[1737981209901,4.4481,224.92,224.81,0.03091066]
[1737981210101,16.78309622,224.97,224.76,2.753]
[1737981210406,16.78309622,224.93,224.76,2.753]
[1737981210606,16.78309622,224.93,224.79,4.4505]
[1737981211008,4.4483,224.91,224.84,0.03171323]
[1737981211308,16.78309622,224.93,224.84,0.03171323]
[1737981211508,16.78309622,224.97,224.84,4.48121323]
[1737981211711,16.78309622,224.97,224.84,0.03171323]
[1737981211907,0.7543,225.0,224.84,0.03171323]
[1737981212209,18.16819622,225.01,224.89,4.4485]
[1737981212405,18.16819622,225.01,224.9,0.02850749]
[1737981213905,17.53739622,225.05,224.9,0.02850749]
[1737981214113,17.53739622,225.05,224.88,1.4205]
[1737981214304,17.53739622,225.05,224.95,0.0308957]
[1737981214510,4.4464,225.0,224.95,0.0308957]
[1737981214812,16.78309622,225.05,224.88,1.4205]
[1737981215004,16.78309622,225.05,224.95,0.02989253]
[1737981215307,16.78309622,225.05,224.82,1.3501]
[1737981215308,16.78309622,225.01,224.82,1.3501]
[1737981215612,4.4483,224.91,224.84,4.4495]
[1737981215808,16.78309622,224.97,224.82,1.3501]
[1737981216414,0.03267049,224.92,224.87,0.02937821]
[1737981216815,4.4488,224.88,224.87,0.02937821]
[1737981217015,0.03267049,224.92,224.87,0.02937821]
[1737981217809,4.4483,224.91,224.87,0.02937821]